Workbook

Sheet Sheet1
A1: INSTRUCTIONS: Use this form when a single information collection document involves multiple reporting and recordkeeping requirements. The totals of the figures in cols. should be entered in item 13 of OMB-83-I: cols. (D) &/or (I) = 13a (respondent is only counted once); cols. F & I = 13b; cols. H & K = 13c. (F)Total/(D)Total = (E)Average (H)Total/(F)Total = (G)Average (K)Total/(I)Total = (J)Average NOTE: The columns will calculate automatically. If Col. E's response is something other than annually, i.e., 1/6 years, list as "1/6" & decimal will display. | I1: TITLE OF INFORMATION COLLECTION DOCUMENT | O1: OMB NO. | P1: 0560-0176
I3: Request for Geospatial Products and Services
O4: DATE PREPARED
O5: 2021-09-08
A10: IDENTIFICATION OF REPORTING OR RECORDKEEPING REQUIREMENT | H10: ANNUAL BURDEN
H12: REPORTS | N12: RECORDS | Q12: RESPONDENT COST
L14: TOTAL BURDEN HOURS | P14: TOTAL
G15: FORMS NO (S) | H15: NO. OF | I15: NO OF | J15: TOTAL ANNUAL | K15: HOURS | L15: (Col. F x G) | N15: NO. OF | O15: ANNUAL | P15: RECORD- | Q15: COST | R15: TOTAL
A16: SECTION OF | B16: DESCRIPTION | G16: (If "none" | H16: RESPONDENTS | I16: RESPONSES | J16: RESPONSES | K16: PER | L16: (H) | N16: RECORD- | O16: HOURS PER | P16: KEEPING HOURS | Q16: PER | R16: COST
A17: REGS. | G17: so state) | I17: PER | J17: (Col. D x E) | K17: RESPONSE | N17: KEEPERS | O17: RECORD- | P17: (Col. I x J) | Q17: HOUR | R17: (Col. H x L)
I18: RESPONDENT | L18: EXEMPT | M18: NON-EXEMPT | O18: KEEPER
A19: (A) | B19: (B) | G19: (C) | H19: (D) | I19: (E) | J19: (F) | K19: (G) | N19: (I) | O19: (J) | P19: (K) | Q19: (L) | R19: (M)
A20: 7 CFR 2.16 | B20: Request for Geospatial Products and Services | G20: FPAC-ISD-441 | H20: 125 | I20: 1 | J20: =SUM(H20*I20) -> 125 | K20: 0.25 | M20: =SUM(J20*K20) -> 31.25 | Q20: 53.71 | R20: =SUM(M20*Q20) -> 1678.4375
A21: 7 CFR 2.16 | B21: Non-Form Request | G21: None | H21: 800 | I21: 1 | J21: 800 | K21: 0.25 | M21: 200 | Q21: 53.71 | R21: 10742
A22: 7 CFR 2.16 | B22: Research and Preparation | G22: None | H22: 450 | I22: 1 | J22: 450 | K22: 0.41666 | M22: 187.497 | Q22: 53.71 | R22: 10070.46387
A23: 7 CFR 2.16 | B23: Walk-in Customers | G23: None | H23: 10 | I23: 1 | J23: 10 | K23: 1 | M23: 10 | Q23: 53.71 | R23: 537.1
A24: 7 CFR 2.16 | B24: Request for Custom Aerial Print | G24: FPAC-ISD-441B | H24: 10 | I24: 1 | J24: 10 | K24: 0.1666 | M24: =SUM(J24*K24) -> 1.666 | Q24: 53.71 | R24: 89.48086
A25: 7 CFR 2.16 | B25: Non-Form Request | G25: None | H25: 15 | I25: 1 | J25: 15 | K25: 0.16666 | M25: =SUM(J25*K25) -> 2.4999 | Q25: 53.71 | R25: =SUM(M25*Q25) -> 134.269629
A26: 7 CFR 2.16 | B26: Research and Preparation | G26: None | H26: 15 | I26: 1 | J26: 15 | K26: 0.33 | M26: =SUM(J26*K26) -> 4.95 | Q26: 53.71 | R26: 265.8645
A27: 7 CFR 2.16 | B27: Walk-in Customers | G27: None | H27: 1 | I27: 1 | J27: 1 | K27: 1 | M27: 1 | Q27: 53.71 | R27: 53.71
A28: 7 CFR 2.16 | B28: GEO Service Quality Survey | G28: FPAC-ISD-441C | H28: 10 | I28: 1 | J28: 10 | K28: 0.0833 | M28: 0.833 | Q28: 53.71 | R28: 44.74043
A29: 7 CFR 2.16 | B29: Non-Form Request | G29: None | H29: 30 | I29: 1 | J29: 30 | K29: 0.083333 | M29: 2.49999 | Q29: 53.71 | R29: 134.2744629
A30: 8 CFR 2.16 | B30: One Time Credit Card Payment Authorization | G30: FPAC-ISD-441D | H30: 200 | I30: 1 | J30: 200 | K30: 0.17 | M30: 34 | Q30: 53.71 | R30: 1826.14
A31: 9 CFR 2.16 | B31: Non-Form Request | G31: None | H31: 800 | I31: 1 | J31: 800 | K31: 0.08 | M31: 64 | Q31: 53.71 | R31: =SUM(M31*Q31) -> 3437.44
A32: 10 CFR 2.16 | B32: Request Preparation | G32: None | H32: 10 | I32: 1 | J32: 10 | K32: 0.08 | M32: 0.8 | Q32: 53.71 | R32: 42.968
A33: 11 CFR 2.16 | B33: Walk-in Customers | G33: None | H33: 1 | I33: 1 | J33: 1 | K33: 1 | M33: 1 | Q33: 53.71 | R33: 53.71
B35: SUBTOTAL | J35: =SUM(J20:J34) -> 2477 | L35: =SUM(L20:L24) -> 0 | M35: =SUM(M20:M34) -> 541.99589 | P35: =SUM(P20:P34) -> 0 | R35: =SUM(R20:R34) -> 29110.59925
B36: TOTAL OF ALL PAGES | J36: =SUM(J35) -> 2477 | L36: =SUM(L35) -> 0 | M36: =SUM(M35) -> 541.99589 | P36: =SUM(P35) -> 0 | R36: =SUM(R35) -> 29110.59925
A37: TOTAL - COLUMNS "F" AND "I" = OMB 83-I, 13b; COLUMNS "H" AND "K" = OMB 83-I, 13c | J37: =SUM(J36+N36) -> 2477 | M37: =SUM(M36+P36) -> 541.99589
